bitfinex/quotes_ETHUSD_20220215
["timestamp","ask_amount","ask_price","bid_price","bid_amount"]
[1644920799618,0.80718,3098.5,3098.4,0.00331877]
[1644920799821,1.91504635,3098.5,3098.4,0.00331877]
[1644920800419,1.91504635,3098.5,3097.9,0.00634759]
[1644920800420,0.98510641,3098.0,3097.9,0.00634759]
[1644920800621,0.80701,3098.1,3097.9,1.6139649]
[1644920800819,1.61402,3098.3,3097.9,1.6139649]
[1644920801020,1.61402,3098.3,3098.0,0.00634759]
[1644920801232,0.02953683,3098.5,3098.0,0.00634759]
[1644920801521,0.02953683,3098.5,3098.0,0.81323799]
[1644920801721,0.96667455,3098.2,3098.1,0.00634759]
[1644920801921,0.80695,3098.4,3098.1,0.00966661]
[1644920802774,0.80695,3098.4,3098.1,0.00634759]
[1644920802969,0.80695,3098.4,3098.1,0.00966661]
[1644920803271,0.80695,3098.4,3098.1,3.43003671]
[1644920803568,0.80695,3098.4,3098.2,3.1887861]
[1644920803768,0.02953683,3098.3,3098.2,3.1887861]
[1644920804469,0.02953683,3098.3,3098.2,0.00634759]
[1644920804869,0.02953683,3098.3,3098.2,4.16792584]
[1644920805072,0.02562891,3098.7,3098.4,0.61167741]
[1644920805273,0.02562891,3098.7,3098.5,3.25635593]
[1644920805469,0.02562891,3098.7,3098.5,3.26270352]
[1644920805870,0.02562891,3098.7,3098.6,0.35848391]
[1644920806071,0.83229891,3098.7,3098.6,3.61805364]
[1644920806272,0.83229891,3098.7,3098.6,3.91805364]
[1644920806718,0.80667,3098.7,3098.6,4.33914378]
[1644920808519,0.80667,3098.7,3098.6,1.16522591]
[1644920809722,0.80667,3098.7,3098.6,4.57760537]
[1644920810119,0.80667,3098.7,3098.6,5.57760537]
[1644920810979,0.80667,3098.7,3098.6,4.57760537]
[1644920811180,0.80667,3098.7,3098.6,4.58234959]
[1644920811380,0.80667,3098.7,3098.6,1.16522591]
[1644920811581,0.83716158,3098.7,3098.6,1.16522591]
[1644920813192,0.68016158,3098.7,3098.6,5.96522591]
[1644920813382,0.68016158,3098.7,3098.6,2.46522591]
[1644920813684,0.68016158,3098.7,3098.6,2.93022591]
[1644920815233,0.68016158,3098.7,3098.6,6.31322967]
[1644920815635,0.95928416,3098.9,3098.7,0.80665]
[1644920815836,0.95928416,3098.9,3098.8,3.75188353]
[1644920816233,0.95928416,3098.9,3098.8,4.75823112]
[1644920817133,0.95928416,3098.9,3098.8,0.3648315]
[1644920817867,0.95928416,3098.9,3098.8,3.52877697]
[1644920818369,1.61335,3099.0,3098.8,3.52877697]
[1644920818575,1.61335,3099.0,3098.9,0.35848391]
[1644920818971,1.61335,3099.0,3098.9,3.51096617]
[1644920819568,1.62215,3099.0,3098.9,3.51096617]
[1644920820768,1.62215,3099.0,3098.9,4.51096617]
[1644920820972,1.62215,3099.0,3098.9,4.81096617]
[1644920821369,1.62215,3099.0,3098.9,4.51096617]
[1644920822017,2.42006,3099.6,3099.0,6.9588]
[1644920822225,2.42006,3099.6,3099.2,1.61301]
[1644920822418,2.42006,3099.6,3099.3,0.82348391]
[1644920822620,0.80659,3099.5,3099.4,0.35848391]
[1644920822822,0.80659,3099.5,3099.4,3.97595159]
[1644920823625,0.80659,3099.5,3099.4,0.82348391]
[1644920823821,0.80659,3099.5,3099.4,4.02408874]
[1644920824420,5.3667,3100.6,3099.4,4.02408874]
[1644920824620,0.80642,3099.8,3099.6,1.61281]
[1644920824823,0.80642,3099.8,3099.7,3.67920142]
[1644920825020,0.80642,3099.8,3099.7,0.35848391]
[1644920825288,3.22611,3100.9,3099.7,3.83201463]
[1644920825490,1.05632,3100.7,3100.4,1.15310341]
[1644920825689,1.05632,3100.7,3100.5,3.65311331]
[1644920825889,0.80632,3100.7,3100.1,0.00192822]
[1644920826087,0.80632,3100.7,3100.1,0.32717792]
[1644920826487,0.80632,3100.7,3100.2,3.2252299]
[1644920826689,0.80632,3100.7,3100.5,0.806322]
[1644920826890,0.80632,3100.7,3100.6,0.3252497]
[1644920827491,0.80632,3100.7,3100.5,0.806322]
[1644920827492,0.3,3100.6,3100.5,0.806322]
[1644920827991,1.1403115,3100.6,3100.5,0.806322]
[1644920828393,0.3,3100.6,3100.5,0.806322]
[1644920828592,0.3,3100.6,3100.5,1.13184532]
[1644920829024,0.80632,3100.7,3100.5,1.13176382]
[1644920829228,0.80632,3100.7,3100.6,0.3254231]
[1644920831227,0.9355,3100.7,3100.6,0.3254231]
[1644920831627,1.10632,3100.7,3100.6,0.3254231]
[1644920832028,1.10632,3100.7,3100.5,1.61553281]
[1644920832430,1.10632,3100.7,3100.5,0.00305031]
[1644920832630,2.00829534,3100.6,3100.5,0.00305031]
[1644920832873,0.3,3100.6,3099.8,3.46345698]
[1644920833074,0.80644,3100.4,3099.9,0.32573769]
[1644920833374,1.10644,3100.4,3099.9,0.32573769]
[1644920833573,1.10644,3100.4,3100.1,1.6129661]
[1644920833775,1.10644,3100.4,3100.2,0.32573769]
[1644920834772,1.10644,3100.4,3100.2,1.13218049]
[1644920835075,1.10644,3100.4,3100.3,0.32573769]
[1644920835271,1.992072,3100.5,3100.3,0.32573769]
[1644920835272,2.16288,3100.5,3100.3,0.32573769]
[1644920835671,0.69975215,3100.5,3100.3,0.32573769]
[1644920836732,0.69975215,3100.5,3100.2,0.80949388]
[1644920837131,0.69975215,3100.5,3100.3,0.29836069]
[1644920837533,0.69975215,3100.5,3100.2,0.80949388]
[1644920837732,0.69975215,3100.5,3100.2,0.8064428]
[1644920837934,0.69975215,3100.5,3100.3,0.29843281]
[1644920838233,0.69975215,3100.5,3100.2,0.80949388]
[1644920838433,0.69975215,3100.5,3100.3,0.2984414]
[1644920838633,0.39975215,3100.5,3100.2,0.80949388]
[1644920838933,0.39975215,3100.5,3100.3,0.29842632]
[1644920839137,0.39975215,3100.5,3100.2,0.80949388]
[1644920839333,0.39975215,3100.5,3100.3,0.29844649]
[1644920841174,0.39975215,3100.5,3100.3,1.10484869]
[1644920841378,0.39975215,3100.5,3100.4,0.29844649]
[1644920841575,4.86104,3101.3,3100.4,0.29844649]
[1644920841576,4.73438215,3101.3,3100.4,0.29844649]
[1644920841780,1.05902183,3101.2,3100.5,1.6128437]
[1644920842075,2.419,3101.0,3100.5,1.6128437]
[1644920842280,2.419,3101.0,3100.5,2.4192656]
[1644920842676,2.419,3101.0,3100.6,0.00305087]
[1644920842875,2.419,3101.0,3100.6,0.30154572]
[1644920843076,2.419,3101.0,3100.6,1.10780572]
[1644920843278,2.419,3101.0,3100.6,1.8874339]
[1644920843679,2.419,3101.0,3100.7,0.298518]
[1644920844128,2.419,3101.0,3100.7,1.9110506]
[1644920844427,2.419,3101.0,3100.7,1.6125326]
[1644920845226,2.419,3101.0,3100.8,0.29851587]
[1644920845425,2.419,3101.0,3100.7,1.61558341]
[1644920845626,2.419,3101.0,3100.8,0.29850874]
[1644920847228,2.419,3101.0,3100.7,1.6125326]
[1644920847532,2.419,3101.0,3100.7,1.61558336]
[1644920847971,3.22537,3101.0,3100.7,1.61558336]
[1644920848570,3.22537,3101.0,3100.7,1.6125326]
[1644920848773,3.22537,3101.0,3100.8,0.29058206]
[1644920848972,2.419,3101.0,3100.8,0.29058206]
[1644920852419,2.419,3101.0,3100.7,1.61558336]
[1644920852420,3.22536,3101.0,3100.7,1.61558336]
[1644920852623,3.22536,3101.0,3100.0,2.4190872]
[1644920852624,0.01282929,3100.9,3100.0,2.4190872]
[1644920852826,0.8066,3100.5,3099.7,3.5]
[1644920853022,0.8066,3100.5,3099.5,3.5]
[1644920853221,1.0039836,3100.4,3099.7,1.6131246]
[1644920853620,0.80659,3100.3,3099.7,1.6131246]
[1644920853823,1.10659,3100.3,3099.7,1.6131246]
[1644920854021,1.10658,3100.3,3099.7,1.6131246]
[1644920854246,1.10658,3100.3,3099.9,0.8066021]
[1644920855020,0.80654,3100.1,3099.9,0.8066021]
[1644920855480,0.80654,3100.1,3099.8,0.00192104]
[1644920855789,0.3,3100.1,3099.1,0.61362125]
[1644920855981,0.63889343,3100.2,3099.1,0.61362125]
[1644920856179,0.93398454,3099.9,3099.4,1.6132833]
[1644920856481,1.61355,3099.8,3099.1,0.00634759]
[1644920856679,0.8068,3099.7,3099.1,0.00634759]
[1644920857283,2.72039,3099.7,3099.1,0.00634759]
[1644920857683,1.01474592,3099.4,3099.1,0.00634759]
[1644920858283,1.61369,3099.5,3099.1,0.00634759]
[1644920858483,1.61369,3099.5,3099.1,0.00830414]
[1644920858684,0.80683,3099.3,3099.1,0.00830414]
[1644920858884,2.42055,3099.3,3099.1,0.00195655]
[1644920859329,1.61372,3099.3,3098.9,0.61362002]
[1644920859729,1.61372,3099.3,3099.0,0.00195659]
[1644920860434,1.61372,3099.3,3098.9,0.61362002]
[1644920860435,0.30688,3099.2,3098.9,0.61362002]
[1644920860630,1.92068,3099.2,3098.9,0.00634636]
[1644920860831,1.6138,3099.2,3099.0,0.00309147]
[1644920861530,2.42063,3099.2,3099.0,0.00309147]
[1644920861731,1.6138,3099.2,3098.9,0.81318156]
[1644920861933,1.6138,3099.2,3098.9,0.81626924]
[1644920862132,1.9138,3099.2,3098.9,0.00943404]
[1644920862335,1.9138,3099.2,3098.9,0.00308768]
[1644920862336,0.80687,3099.1,3098.9,0.00308768]
[1644920862533,1.6138,3099.2,3098.9,0.00308768]
[1644920862972,1.6138,3099.2,3098.6,0.00634636]
[1644920863172,1.6138,3099.2,3098.9,0.00308771]
[1644920863573,1.6138,3099.2,3098.9,0.00943407]
[1644920864174,1.6138,3099.2,3098.9,0.00634636]
[1644920864574,1.6138,3099.2,3098.9,0.00943407]
[1644920864775,1.02210081,3099.2,3098.9,0.00943407]
[1644920865278,1.02210081,3099.2,3098.9,3.12196219]
[1644920865674,1.02210081,3099.2,3098.9,3.12501187]
[1644920866174,1.02210081,3099.2,3098.9,0.00939604]
[1644920866625,0.02062845,3099.1,3098.9,0.00634636]
[1644920866825,0.02062845,3099.1,3098.9,0.00939604]
[1644920867830,0.02062845,3099.1,3098.9,0.00634636]
[1644920868229,0.02062845,3099.1,3098.9,3.09136936]
[1644920868628,0.02062845,3099.1,3098.9,3.99864302]
[1644920868828,0.02062845,3099.1,3099.0,3.2500758]
[1644920870386,0.02062845,3099.1,3098.9,1.11603272]
[1644920870781,0.02062845,3099.1,3098.9,0.81603272]
[1644920871384,0.02062845,3099.1,3098.9,0.81298046]
[1644920871583,0.02577207,3099.1,3098.9,0.81298046]
[1644920872583,0.02577207,3099.1,3099.0,0.22331554]
[1644920874828,0.02577207,3099.1,3099.0,3.38828027]
[1644920875025,0.02577207,3099.1,3099.0,0.22331554]
[1644920875731,0.98232422,3099.3,3099.0,0.22331554]
[1644920876026,0.98232422,3099.3,3099.0,1.03013204]
[1644920876227,0.98232422,3099.3,3099.1,0.22331554]
[1644920876526,0.98232422,3099.3,3099.2,0.22331554]
[1644920876930,0.80672,3099.4,3099.2,1.99740843]
[1644920877127,0.80672,3099.4,3099.3,0.22331554]
[1644920877328,1.61316,3099.5,3099.3,3.45437153]
[1644920877529,1.61316,3099.5,3099.4,0.22331554]
[1644920881383,1.61316,3099.5,3099.3,0.00282229]
[1644920881628,1.61316,3099.5,3099.3,0.21785717]
[1644920881828,1.61316,3099.5,3099.4,0.19282911]
[1644920883830,1.91316,3099.5,3099.4,0.19282911]
[1644920884430,1.61316,3099.5,3099.4,0.19282911]
[1644920884630,1.61324,3099.6,3099.4,0.19282911]
[1644920885029,1.61324,3099.6,3099.4,1.80594161]
[1644920885276,1.742446,3099.6,3099.5,3.63773404]
[1644920885678,1.61324,3099.6,3099.5,3.63773404]
[1644920885880,1.61324,3099.6,3099.5,4.63773404]
[1644920886076,0.80649,3099.7,3099.5,4.63773404]
[1644920886280,0.80649,3099.7,3099.6,4.3986146]
[1644920886475,0.80649,3099.7,3099.6,4.59144371]
[1644920889128,0.935682,3099.7,3099.6,5.19871737]
[1644920889529,0.80649,3099.7,3099.6,5.19871737]
[1644920890130,0.80649,3099.7,3099.6,4.59144371]
[1644920890332,0.80649,3099.7,3099.6,5.19871737]
[1644920892235,1.61277,3100.1,3099.6,6.20414141]
[1644920892434,6.333,3101.3,3100.3,1.6124639]
[1644920892636,0.80623,3100.7,3100.4,3.90840024]
[1644920892886,0.80623,3100.7,3100.5,0.19282911]
[1644920893288,0.80623,3100.7,3100.6,0.19282911]
[1644920894292,0.80623,3100.7,3100.6,3.28843446]
[1644920894490,0.80623,3100.7,3100.6,3.45011349]
[1644920894690,0.80623,3100.7,3100.6,3.91511349]
[1644920894891,1.61241,3100.9,3100.6,5.02128159]
[1644920895091,1.61241,3100.9,3100.7,0.80617]
[1644920895290,1.61241,3100.9,3100.8,3.32252808]
[1644920895490,0.80617,3101.0,3100.8,3.32252808]
[1644920895692,1.61227,3101.1,3100.9,0.19282911]
[1644920895893,1.17003529,3101.1,3101.0,0.19282911]
[1644920896734,1.47003529,3101.1,3101.0,3.33577556]
[1644920897437,1.59919629,3101.1,3101.0,0.19282911]
[1644920897633,1.47003529,3101.1,3101.0,3.2698957]
[1644920897833,1.17003529,3101.1,3101.0,3.2698957]
[1644920898437,1.61232,3101.2,3101.0,3.2698957]
[1644920898634,1.61232,3101.2,3101.1,0.19282911]
[1644920900678,0.50032,3101.2,3101.1,0.19282911]
[1644920901077,0.50032,3101.2,3101.0,3.09786256]
[1644920901279,0.50032,3101.2,3101.0,3.90402256]
[1644920901678,0.50032,3101.2,3101.1,0.17736982]
[1644920902281,0.50032,3101.2,3101.0,0.80616]
[1644920903478,0.50032,3101.2,3100.9,1.1061469]
[1644920903880,0.50032,3101.2,3100.9,0.8061469]
[1644920904137,0.50032,3101.2,3100.1,4.85637358]
[1644920904138,0.50032,3101.2,3100.2,3.5]
[1644920904331,0.50032,3101.2,3099.9,6.9042]
[1644920904332,1.18150497,3101.1,3100.3,0.17732269]
[1644920904531,1.02834721,3100.8,3100.4,0.17732269]
[1644920904733,0.80644,3100.9,3100.5,0.98385959]
[1644920905037,2.41931,3101.0,3100.5,0.8065369]
[1644920905038,0.3,3100.7,3100.5,0.8065369]
[1644920905233,0.3,3100.9,3100.5,0.8065369]
[1644920905632,0.80644,3100.7,3100.6,0.17759119]
[1644920905831,0.3,3100.6,3100.5,0.8065369]
[1644920906032,0.3,3100.6,3100.5,0.9841304]
[1644920907981,0.80644,3100.7,3100.5,0.9841304]
[1644920908386,0.80644,3100.7,3100.5,2.4191988]
[1644920908682,1.10644,3100.7,3100.6,0.17427893]
[1644920908882,1.10644,3100.7,3100.5,2.4191988]
[1644920909083,1.23563,3100.7,3100.5,2.4191988]
[1644920909583,1.10644,3100.7,3100.5,2.4191988]
[1644920909987,1.10644,3100.7,3100.6,0.17429373]
[1644920913055,1.235626,3100.7,3100.6,0.17429373]
[1644920915983,0.4514481,3100.7,3100.6,0.17429373]
[1644920918477,0.3222621,3100.7,3100.6,0.17429373]
[1644920919630,0.3222621,3100.7,3100.2,2.41889]
[1644920919631,0.3,3100.6,3099.9,0.64054882]
[1644920919835,0.3,3100.6,3099.8,1.2436]
[1644920919836,0.80655,3100.5,3099.8,1.2436]
[1644920920032,0.80655,3100.5,3099.9,1.613083]
[1644920920635,1.17640096,3100.2,3099.9,1.613083]
[1644920920938,2.28293096,3100.2,3099.7,0.0028574]
[1644920921832,0.80654,3100.1,3099.4,0.13819997]
[1644920922034,1.07467963,3099.7,3099.4,0.13819997]
[1644920922432,0.80664,3100.0,3099.4,0.13819997]
[1644920922633,0.3,3099.8,3099.4,0.13819997]
[1644920923083,0.3,3099.8,3099.4,0.806612]
[1644920923084,0.80662,3099.7,3099.4,0.806612]
[1644920923285,0.3,3099.6,3099.1,0.61015046]
[1644920923481,0.3,3099.6,3099.4,0.00285744]
[1644920923880,3.80316091,3100.1,3099.4,0.00285744]
[1644920924185,3.80316091,3100.1,3099.2,0.8067013]
[1644920924186,1.13018308,3099.5,3099.2,0.8067013]
[1644920924581,1.43018308,3099.5,3099.2,0.8067013]
[1644920924779,1.13018308,3099.5,3099.2,0.8067013]
[1644920924980,0.80668,3099.5,3099.2,2.4199812]
[1644920925781,0.80668,3099.5,3099.2,3.03298927]
[1644920925985,0.80668,3099.5,3099.2,3.96912914]
[1644920926180,0.80668,3099.5,3099.3,0.61015046]
[1644920927034,1.61335,3099.6,3099.4,0.86218806]
[1644920927234,2.67437297,3099.6,3099.4,1.66886436]
[1644920927834,0.0088,3099.5,3099.4,1.66886436]
[1644920928033,0.0088,3099.5,3099.4,0.86218806]
[1644920931786,0.3088,3099.5,3099.4,0.86218806]
[1644920932184,0.129224,3100.2,3099.5,7.81218806]
[1644920932385,0.129224,3100.2,3099.8,0.86218806]
[1644920932583,0.129224,3100.2,3099.8,1.16218806]
[1644920932882,0.129224,3100.2,3099.9,0.86218806]
[1644920933282,1.77860001,3100.2,3099.9,1.66851536]
[1644920933881,2.07860001,3100.2,3099.9,1.66851536]
[1644920934136,2.07860001,3100.2,3099.9,1.66533733]
[1644920934537,5.50781782,3100.2,3099.9,1.66533733]
[1644920934837,2.07860001,3100.2,3099.9,1.66533733]
[1644920935836,1.58099701,3100.2,3099.9,1.66533733]
[1644920937049,2.38756701,3100.2,3099.9,1.66533733]
[1644920937237,1.58099701,3100.2,3099.9,1.66533733]
[1644920937537,1.58979701,3100.2,3099.9,1.66533733]
[1644920939190,1.58979701,3100.2,3099.9,0.86218806]
[1644920939484,1.58979701,3100.2,3100.0,0.1317543]
[1644920939485,3.651281,3100.1,3100.0,0.1317543]
[1644920939686,2.844661,3100.1,3100.0,0.1317543]
[1644920939884,0.80659,3100.1,3100.0,0.1317543]
[1644920940285,1.58979701,3100.2,3100.0,0.1317543]
[1644920941085,1.58979701,3100.2,3100.0,0.99394236]
[1644920941284,1.58979701,3100.2,3100.1,0.1317543]
[1644920941537,2.82126265,3100.2,3100.1,0.1317543]
[1644920941936,3.18977165,3100.2,3100.1,0.1317543]
[1644920943440,1.15176601,3100.2,3100.1,0.1317543]
[1644920943639,0.0088,3100.2,3100.1,0.1317543]
[1644920944939,0.0088,3100.2,3100.1,0.1229543]
[1644920947280,0.0088,3100.2,3100.1,1.28514236]
[1644920947881,0.0088,3100.2,3100.1,1.89583917]
[1644920948079,0.0088,3100.2,3100.1,1.28514236]
[1644920948680,0.0176,3100.2,3100.1,1.28514236]
[1644920949336,0.0176,3100.2,3100.1,1.89583917]
[1644920949537,2.42202156,3101.1,3100.4,0.86218806]
[1644920949736,0.00309156,3101.1,3100.4,1.96839806]
[1644920949933,0.00309156,3101.5,3100.4,1.77309568]
[1644920950135,0.80618,3101.0,3100.4,4.09548781]
[1644920950335,0.00309156,3100.9,3100.4,3.23809568]
[1644920950532,0.00309156,3100.9,3100.4,2.62718806]
[1644920950733,0.00309156,3100.9,3100.7,0.86218806]
[1644920950935,0.00309156,3100.9,3100.8,0.86218806]
[1644920951435,0.00309156,3100.9,3100.8,1.16218806]
[1644920951836,0.00309156,3100.9,3100.8,1.96835806]
[1644920952234,0.01189156,3100.9,3100.8,1.16218806]
[1644920954488,0.01189156,3100.9,3100.8,0.86218806]
[1644920954687,1.2026965,3100.9,3100.8,0.86218806]
[1644920955286,1.2026965,3100.9,3100.8,0.85338806]
[1644920955884,1.2026965,3100.9,3100.6,0.19648981]
[1644920956085,2.8155465,3100.9,3100.6,0.19648981]
[1644920956284,3.6219765,3100.9,3100.6,0.19648981]
[1644920957336,2.8155465,3100.9,3100.6,0.19648981]
[1644920957635,2.9447415,3100.9,3100.6,0.19648981]
[1644920958836,3.7511615,3100.9,3100.6,0.19648981]
[1644920960038,2.9447415,3100.9,3100.6,0.19648981]
[1644920961088,2.05393656,3100.9,3100.6,0.19648981]
[1644920961291,1.75393656,3100.9,3100.6,0.19648981]
[1644920962687,1.76282536,3100.9,3100.6,0.19648981]
[1644920962888,0.3,3100.7,3100.6,2.61496981]
[1644920963188,0.3,3100.7,3100.6,0.49648981]
[1644920963390,0.3,3100.7,3100.6,0.19648981]
[1644920964331,0.3,3100.7,3100.6,0.18760101]
[1644920965130,0.3,3100.7,3100.6,0.34447069]
[1644920965531,0.3,3100.7,3100.6,0.64447069]
[1644920966335,0.3,3100.7,3100.6,0.34447069]
[1644920966733,0.3,3100.7,3100.6,0.33558189]
[1644920968587,0.3,3100.7,3100.6,0.15686968]
[1644920969584,0.3,3100.7,3100.6,0.14798088]
[1644920970384,0.3,3100.7,3100.6,0.14225316]
[1644920972233,1.16617629,3100.9,3100.6,3.99987202]
[1644920972435,0.02078036,3100.9,3100.7,1.27116]
[1644920972636,0.02078036,3100.9,3100.7,2.27116]
[1644920972637,0.8237488,3100.9,3100.7,2.27116]
[1644920972834,0.02078036,3100.9,3100.7,2.27116]
[1644920973032,0.01522451,3101.6,3100.8,6.95]
[1644920973232,41.25,3101.9,3101.2,3.54259026]
[1644920973233,40.88786778,3101.9,3101.2,3.54259026]
[1644920973434,30.0,3101.7,3101.2,3.84259026]
[1644920973634,30.0,3101.9,3101.2,3.84259026]
[1644920973834,0.80607,3101.7,3101.2,3.84259026]
[1644920974134,0.3,3101.5,3101.3,0.80607]
[1644920974335,0.3,3101.5,3101.3,2.4182213]
[1644920974534,0.3,3101.5,3101.4,0.3]
[1644920974735,0.3,3101.5,3101.4,3.40758491]
[1644920976185,0.67969506,3101.7,3101.4,5.82560491]
[1644920976387,0.67969506,3101.7,3101.4,6.63162581]
[1644920976787,0.67969506,3101.7,3101.4,3.5240409]
[1644920976986,0.80883206,3101.7,3101.4,3.4240409]
[1644920977387,0.67969506,3101.7,3101.5,0.806]
[1644920977792,0.00330772,3101.8,3101.5,1.61187]
[1644920977987,0.00330772,3101.8,3101.6,2.4177244]
[1644920978186,0.00330772,3101.8,3101.7,0.3]
[1644920978386,0.4,3102.0,3101.7,1.10592]
[1644920978586,0.00330766,3101.9,3101.7,1.95480004]
[1644920979040,1.61524766,3101.9,3101.7,2.76076004]
[1644920979240,1.91524766,3101.9,3101.7,2.7178249]
[1644920979642,1.91194,3101.9,3101.7,2.7178249]
[1644920979840,1.91194,3101.9,3101.8,3.15589887]
[1644920980244,0.3,3101.9,3101.8,3.15589887]
[1644920980843,0.429129,3101.9,3101.8,3.05589887]
[1644920981344,0.3,3101.9,3101.8,3.05589887]
[1644920981745,0.3,3101.9,3101.7,1.9119049]
[1644920982344,0.3,3101.9,3101.8,0.84162293]
[1644920983695,0.3,3101.9,3101.7,1.6119049]
[1644920983889,1.10618,3101.9,3101.7,1.6119049]
[1644920984089,0.3,3101.9,3101.7,1.6119049]
[1644920984289,0.429157,3101.9,3101.7,1.6119049]
[1644920984690,0.3,3101.9,3101.7,1.6119049]
[1644920984892,1.91232,3101.9,3101.7,1.6119049]
[1644920985293,1.10614,3101.9,3101.7,1.6119049]
[1644920985795,0.3,3101.8,3101.6,2.4178573]
[1644920985997,1.10625,3101.8,3101.6,2.4178573]
[1644920986193,0.99036106,3101.7,3101.5,0.8062661]
[1644920986393,1.10625,3101.8,3101.1,0.00304653]
[1644920986394,0.3,3101.8,3101.1,0.00304653]
[1644920986641,0.80627,3101.6,3101.1,0.00304653]
[1644920986842,1.96292284,3101.8,3100.6,0.27639994]
[1644920986843,0.3,3101.5,3100.6,0.27639994]
[1644920987041,0.80634,3101.3,3101.1,0.0030464]
[1644920987240,0.80632,3101.2,3101.1,0.0030464]
[1644920988145,0.80632,3101.2,3101.0,1.6125415]
[1644920988440,0.80632,3101.2,3101.0,1.61558668]
[1644920989040,1.6156661,3101.2,3101.0,1.61558668]
[1644920989240,1.6156661,3101.2,3101.0,1.6125415]
[1644920989842,0.8093961,3101.2,3101.0,1.6125415]
[1644920990690,0.8093961,3101.2,3101.0,1.9125415]
[1644920992286,0.8093961,3101.2,3101.1,0.11908542]
[1644920995943,1.94999253,3101.3,3101.1,0.10908542]
[1644920996339,1.82083353,3101.3,3101.1,0.10908542]
[1644920997340,1.82083353,3101.3,3101.1,0.91518682]
[1644920997542,1.82083353,3101.3,3101.1,0.8061014]
[1644920997790,1.82083353,3101.3,3101.2,0.3]
[1644920998693,1.61263,3101.3,3101.2,0.3]
[1644920998895,1.61263,3101.3,3101.2,3.46620467]
[1644920999495,1.61263,3101.3,3101.2,0.3]
[1644920999994,1.91263,3101.3,3101.2,0.3]
[1644921000193,1.92263,3101.3,3101.2,0.3]
[1644921002340,1.92263,3101.3,3101.2,3.54615677]
[1644921002341,1.62263,3101.3,3101.2,3.54615677]
[1644921002541,0.01,3101.3,3101.2,4.54615677]
[1644921003140,1.62263,3101.3,3101.2,4.54615677]
[1644921003343,0.8829267,3101.3,3101.2,4.54615677]
[1644921003546,0.00286047,3101.8,3101.2,5.15700193]
[1644921003744,2.01208,3102.0,3101.2,5.15700193]
[1644921003745,0.13523654,3102.0,3101.4,0.61084516]
[1644921003943,0.13523654,3102.0,3101.5,0.61084516]
[1644921003944,0.00286047,3101.8,3101.5,0.61084516]
[1644921004141,0.80871047,3101.8,3101.6,0.61084516]
[1644921004342,0.80871047,3101.8,3101.7,0.465]
[1644921004846,1.6117,3101.9,3101.7,0.465]
[1644921005295,0.3,3101.8,3101.7,1.27082]
[1644921005495,0.3,3101.8,3101.7,0.465]
[1644921005896,0.3,3101.8,3101.7,4.3365921]
[1644921007597,0.3,3101.8,3101.7,0.465]
[1644921007598,0.429119,3101.8,3101.7,0.465]
[1644921007798,0.3,3101.8,3101.7,0.465]
[1644921007998,0.3,3101.8,3101.7,3.55967477]
[1644921009040,0.44925882,3101.8,3101.7,3.55967477]
[1644921009340,0.59851764,3101.8,3101.7,3.55967477]
[1644921010341,0.59851764,3101.8,3101.7,0.465]
[1644921010741,0.63211287,3101.8,3101.7,0.465]
[1644921010941,0.63211287,3101.8,3101.6,2.4174068]
[1644921011942,0.63517359,3101.8,3101.6,2.4174068]
[1644921012141,0.63517359,3101.8,3101.7,0.86079924]
[1644921012791,0.63517359,3101.8,3101.6,0.8057668]
[1644921014190,0.33665595,3101.8,3101.6,0.8057668]
[1644921014390,0.14925882,3101.7,3101.6,0.8057668]
[1644921014597,0.29851764,3101.7,3101.6,0.8057668]
[1644921015391,0.33206676,3101.7,3101.6,0.8057668]
[1644921015792,0.31377921,3101.7,3101.6,0.8057668]
[1644921015992,1.20845476,3101.9,3101.7,4.2059901]
[1644921016193,1.20845476,3101.9,3101.8,0.10409721]
[1644921017345,1.50845476,3101.9,3101.8,0.10409721]
[1644921018545,1.50017877,3101.9,3101.8,0.10409721]
[1644921019349,2.77927904,3101.9,3101.8,0.10409721]
[1644921019950,1.50017877,3101.9,3101.8,0.10409721]
[1644921023495,1.62930577,3101.9,3101.8,0.10409721]
[1644921026350,2.9083894,3101.9,3101.8,0.10409721]
[1644921026751,3.7144994,3101.9,3101.8,0.10409721]
[1644921027549,3.71456131,3101.9,3101.8,0.10409721]
[1644921027792,2.43541577,3101.9,3101.8,0.10409721]
[1644921028395,1.62930577,3101.9,3101.8,0.10409721]
[1644921028602,2.9084483,3101.9,3101.8,0.10409721]
[1644921028796,2.7793213,3101.9,3101.8,0.10409721]
[1644921029197,2.77946,3101.9,3101.8,0.10409721]
[1644921029798,1.20017877,3101.9,3101.8,0.10409721]
[1644921031099,1.50017877,3101.9,3101.8,0.10409721]
[1644921031954,1.50017877,3101.9,3101.7,0.8060447]
[1644921032148,1.50017877,3101.9,3101.8,0.08079878]
[1644921032553,1.50017877,3101.9,3101.8,3.46312161]
[1644921032749,0.3,3101.9,3101.8,3.46312161]
[1644921032952,0.3,3101.9,3101.8,4.07396677]
[1644921033151,0.3,3101.9,3101.8,3.46312161]
[1644921034552,0.3,3101.9,3101.8,0.08079878]
[1644921035296,0.429117,3101.9,3101.8,0.08079878]
[1644921035498,0.3,3101.9,3101.8,0.08079878]
[1644921036097,0.94711005,3102.0,3101.8,0.08079878]
[1644921036098,0.45066583,3102.0,3101.8,0.08079878]
[1644921036298,0.45066583,3102.0,3101.8,0.88677698]
[1644921036598,0.45366392,3102.0,3101.9,0.08079878]
[1644921037402,0.45066583,3102.0,3101.9,0.08079878]
[1644921038300,0.75066583,3102.0,3101.9,0.08079878]
[1644921038503,2.05064848,3102.0,3101.9,0.08079878]
[1644921039748,3.04042155,3102.0,3101.9,0.08079878]
[1644921041145,2.05064848,3102.0,3101.9,0.08079878]
[1644921041747,0.75066583,3102.0,3101.9,0.08079878]
[1644921042253,2.85747873,3102.0,3101.9,0.08079878]
[1644921042450,4.0173362,3102.0,3101.9,0.08079878]
[1644921043093,4.0173362,3102.0,3101.3,1.42008687]
[1644921043094,2.41861,3101.9,3101.3,1.42008687]
[1644921043295,0.30304542,3101.8,3101.3,0.61389887]
[1644921043597,0.30304542,3101.8,3101.5,0.61084516]
[1644921043794,0.30304542,3101.8,3101.6,0.61084516]
[1644921044196,0.30304542,3101.8,3101.5,0.61084516]
[1644921044399,0.30304542,3101.8,3101.6,1.41679516]
[1644921044596,1.10917542,3101.8,3101.6,1.41679516]
[1644921045197,1.10917542,3101.8,3101.6,0.61084516]
[1644921045399,1.10917542,3101.8,3101.5,0.8059514]